[Event "*** Titled Tuesday Blitz"]
[Site "Chess.com"]
[Date "2021.03.09"]
[Round "9"]
[White "Oglob71"]
[Black "S-Fazulyanov"]
[Result "1-0"]
[WhiteElo "2408"]
[BlackElo "2487"]
[TimeControl "180+1"]
[EndTime "11:48:07 PST"]
[Termination "Oglob71 won by resignation"]

1. d4 {[%clk 0:03:00.9]} 1... d5 {[%clk 0:02:59.8]} 2. Nf3 {[%clk 0:02:59.5]}
2... Nf6 {[%clk 0:02:59.8]} 3. c4 {[%clk 0:02:59.4]} 3... e6 {[%clk 0:03:00.1]}
4. Qc2 {[%clk 0:02:58.3]} 4... Nbd7 {[%clk 0:02:58.1]} 5. Bg5 {[%clk 0:02:57.5]}
5... Be7 {[%clk 0:02:58]} 6. e3 {[%clk 0:02:54.2]} 6... O-O {[%clk 0:02:57.7]}
7. cxd5 {[%clk 0:02:54.2]} 7... exd5 {[%clk 0:02:57.7]} 8. Nc3 {[%clk
0:02:53.1]} 8... c6 {[%clk 0:02:58.1]} 9. Bd3 {[%clk 0:02:53.1]} 9... Re8 {[%clk
0:02:58.6]} 10. O-O {[%clk 0:02:52.2]} 10... Nf8 {[%clk 0:02:59.2]} 11. h3
{[%clk 0:02:52.3]} 11... Ne4 {[%clk 0:02:59.6]} 12. Bf4 {[%clk 0:02:51.5]} 12...
f5 {[%clk 0:02:57.1]} 13. Ne5 {[%clk 0:02:49.1]} 13... Bd6 {[%clk 0:02:56.1]}
14. f3 {[%clk 0:02:47.5]} 14... Nxc3 {[%clk 0:02:46.4]} 15. bxc3 {[%clk
0:02:47.8]} 15... Qf6 {[%clk 0:02:47]} 16. c4 {[%clk 0:02:29.8]} 16... Ng6
{[%clk 0:02:45]} 17. Nxg6 {[%clk 0:02:26.9]} 17... hxg6 {[%clk 0:02:45.9]} 18.
Bxd6 {[%clk 0:02:25.3]} 18... Qxd6 {[%clk 0:02:46.8]} 19. c5 {[%clk 0:02:23.3]}
19... Qf6 {[%clk 0:02:42.2]} 20. Qf2 {[%clk 0:02:19.5]} 20... Bd7 {[%clk
0:02:33.2]} 21. Rab1 {[%clk 0:02:18.2]} 21... Rab8 {[%clk 0:02:27.6]} 22. Rb3
{[%clk 0:02:18.4]} 22... Re7 {[%clk 0:02:18.9]} 23. Rfb1 {[%clk 0:02:17.2]}
23... Bc8 {[%clk 0:02:16]} 24. f4 {[%clk 0:02:13.4]} 24... Qe6 {[%clk
0:02:13.1]} 25. Be2 {[%clk 0:02:12.5]} 25... Qd7 {[%clk 0:02:00.3]} 26. g4
{[%clk 0:02:09.4]} 26... Qc7 {[%clk 0:01:55.8]} 27. g5 {[%clk 0:02:07.9]} 27...
b6 {[%clk 0:01:53.7]} 28. h4 {[%clk 0:02:06.1]} 28... b5 {[%clk 0:01:50.8]} 29.
h5 {[%clk 0:02:05.5]} 29... gxh5 {[%clk 0:01:48.4]} 30. Bxh5 {[%clk 0:02:05.8]}
30... Re6 {[%clk 0:01:35.3]} 31. Qh4 {[%clk 0:01:58.9]} 31... g6 {[%clk
0:01:31.8]} 32. Bf3 {[%clk 0:01:59.3]} 32... Qg7 {[%clk 0:01:16.2]} 33. Kf2
{[%clk 0:01:57.7]} 33... Bd7 {[%clk 0:01:11.9]} 34. a4 {[%clk 0:01:54.7]} 34...
a6 {[%clk 0:01:07.6]} 35. Qh1 {[%clk 0:01:46.5]} 35... Ree8 {[%clk 0:00:59.9]}
36. a5 {[%clk 0:01:35.3]} 36... Kf7 {[%clk 0:00:53.2]} 37. Qg2 {[%clk
0:01:33.1]} 37... Rh8 {[%clk 0:00:47.4]} 38. Rh1 {[%clk 0:01:32.6]} 38... Rxh1
{[%clk 0:00:43.9]} 39. Qxh1 {[%clk 0:01:33]} 39... Be6 {[%clk 0:00:36.3]} 40.
Rb1 {[%clk 0:01:29.7]} 40... Rh8 {[%clk 0:00:36.2]} 41. Qg2 {[%clk 0:01:29.2]}
41... Qh7 {[%clk 0:00:35.3]} 42. Ke2 {[%clk 0:01:16.6]} 42... Qh2 {[%clk
0:00:30.4]} 43. Kd3 {[%clk 0:01:11]} 43... Qxg2 {[%clk 0:00:29.9]} 44. Bxg2
{[%clk 0:01:11.1]} 44... Rh2 {[%clk 0:00:30.4]} 45. Rb2 {[%clk 0:01:11.2]} 45...
Ke7 {[%clk 0:00:28.9]} 46. Kc3 {[%clk 0:01:11.2]} 46... Kd7 {[%clk 0:00:28.3]}
47. Bxd5 {[%clk 0:01:05.4]} 47... Rxb2 {[%clk 0:00:20.1]} 48. Bxe6+ {[%clk
0:01:05.7]} 48... Kxe6 {[%clk 0:00:20.4]} 49. Kxb2 {[%clk 0:01:06]} 49... Kd5
{[%clk 0:00:21]} 50. Kc3 {[%clk 0:01:06.1]} 50... Ke4 {[%clk 0:00:21.1]} 51. Kb4
{[%clk 0:01:05.5]} 51... Kd5 {[%clk 0:00:21.3]} 52. Kb3 {[%clk 0:01:05.5]} 52...
Ke4 {[%clk 0:00:21.8]} 53. Kc3 {[%clk 0:01:06]} 53... Kd5 {[%clk 0:00:22.3]} 54.
Kd3 {[%clk 0:01:05]} 54... Ke6 {[%clk 0:00:19.4]} 55. e4 {[%clk 0:00:59.5]}
55... fxe4+ {[%clk 0:00:18]} 56. Kxe4 {[%clk 0:00:59.8]} 56... b4 {[%clk
0:00:18.4]} 57. Kd3 {[%clk 0:00:59.9]} 57... Kf5 {[%clk 0:00:18.7]} 58. d5
{[%clk 0:00:59.1]} 58... cxd5 {[%clk 0:00:19.1]} 59. c6 {[%clk 0:00:59.4]} 59...
Ke6 {[%clk 0:00:20]} 60. c7 {[%clk 0:00:56.4]} 60... Kd7 {[%clk 0:00:20.5]} 61.
f5 {[%clk 0:00:56.9]} 61... b3 {[%clk 0:00:19.9]} 62. fxg6 {[%clk 0:00:55.4]}
62... b2 {[%clk 0:00:20.8]} 63. Kc2 {[%clk 0:00:54]} 63... Kxc7 {[%clk
0:00:21.7]} 64. g7 {[%clk 0:00:52.2]} 1-0

[Event "*** Titled Tuesday Blitz"]
[Site "Chess.com"]
[Date "2021.03.09"]
[Round "9"]
[White "lelya96"]
[Black "david_alex"]
[Result "0-1"]
[WhiteElo "2231"]
[BlackElo "2095"]
[TimeControl "180+1"]
[EndTime "11:48:10 PST"]
[Termination "david_alex won by resignation"]

1. d4 {[%clk 0:03:00.9]} 1... Nf6 {[%clk 0:03:00.1]} 2. Nf3 {[%clk 0:03:00.7]}
2... e6 {[%clk 0:03:00.5]} 3. Bg5 {[%clk 0:03:01.1]} 3... d5 {[%clk 0:03:00.7]}
4. e3 {[%clk 0:03:01.2]} 4... Be7 {[%clk 0:03:00.6]} 5. Bd3 {[%clk 0:03:01.6]}
5... h6 {[%clk 0:03:00.6]} 6. Bh4 {[%clk 0:03:01.4]} 6... O-O {[%clk 0:02:57.4]}
7. O-O {[%clk 0:03:00.9]} 7... c5 {[%clk 0:02:58]} 8. c3 {[%clk 0:03:01]} 8...
Nc6 {[%clk 0:02:58.3]} 9. Nbd2 {[%clk 0:03:00.7]} 9... b6 {[%clk 0:02:59]} 10.
Qe2 {[%clk 0:03:00.2]} 10... Bb7 {[%clk 0:02:59.6]} 11. Ne5 {[%clk 0:02:59.4]}
11... Nxe5 {[%clk 0:02:53.1]} 12. dxe5 {[%clk 0:02:59.2]} 12... Ne4 {[%clk
0:02:53.8]} 13. Bxe7 {[%clk 0:02:57.9]} 13... Qxe7 {[%clk 0:02:53.2]} 14. Bxe4
{[%clk 0:02:58]} 14... dxe4 {[%clk 0:02:54.1]} 15. Qg4 {[%clk 0:02:57.9]} 15...
Qg5 {[%clk 0:02:40]} 16. Qxg5 {[%clk 0:02:53.5]} 16... hxg5 {[%clk 0:02:40.9]}
17. Nc4 {[%clk 0:02:52.8]} 17... f6 {[%clk 0:02:35.5]} 18. Rad1 {[%clk
0:02:44.8]} 18... Rad8 {[%clk 0:02:34.3]} 19. Rd6 {[%clk 0:02:38.5]} 19... Rxd6
{[%clk 0:02:31.3]} 20. Nxd6 {[%clk 0:02:37.8]} 20... Bc6 {[%clk 0:02:31.9]} 21.
exf6 {[%clk 0:02:33.4]} 21... gxf6 {[%clk 0:02:31.6]} 22. Rd1 {[%clk 0:02:06.4]}
22... Rd8 {[%clk 0:02:29.8]} 23. Kf1 {[%clk 0:02:05.9]} 23... Kf8 {[%clk
0:02:29.5]} 24. Ke1 {[%clk 0:02:01.5]} 24... b5 {[%clk 0:02:17]} 25. c4 {[%clk
0:01:52.9]} 25... a6 {[%clk 0:02:09.7]} 26. cxb5 {[%clk 0:01:13.1]} 26... axb5
{[%clk 0:02:08]} 27. f3 {[%clk 0:01:13.4]} 27... exf3 {[%clk 0:02:05.5]} 28.
gxf3 {[%clk 0:01:12.3]} 28... Bxf3 {[%clk 0:02:04.7]} 29. Rd2 {[%clk 0:01:09.6]}
29... Bc6 {[%clk 0:02:03.7]} 30. Ne4 {[%clk 0:00:47.1]} 30... Rxd2 {[%clk
0:02:02.8]} 31. Nxd2 {[%clk 0:00:48]} 31... Ke7 {[%clk 0:02:01.2]} 32. Nb3
{[%clk 0:00:47.5]} 32... Kd6 {[%clk 0:02:00.4]} 33. Kf2 {[%clk 0:00:45.9]} 33...
Bd5 {[%clk 0:02:00.1]} 34. Nc1 {[%clk 0:00:43.4]} 34... f5 {[%clk 0:01:55.7]}
35. a3 {[%clk 0:00:41.3]} 35... Be4 {[%clk 0:01:54.8]} 36. Ne2 {[%clk
0:00:40.4]} 36... Ke5 {[%clk 0:01:48]} 37. Nc3 {[%clk 0:00:38.6]} 37... Bd3
{[%clk 0:01:47.8]} 38. h3 {[%clk 0:00:31.9]} 38... f4 {[%clk 0:01:46.9]} 39. Nd1
{[%clk 0:00:29.3]} 39... Kf5 {[%clk 0:01:44.6]} 40. Nc3 {[%clk 0:00:28.5]} 40...
e5 {[%clk 0:01:40]} 41. Nd5 {[%clk 0:00:27.3]} 41... g4 {[%clk 0:01:28.5]} 42.
hxg4+ {[%clk 0:00:25.6]} 42... Kxg4 {[%clk 0:01:27.4]} 43. Nf6+ {[%clk
0:00:24.6]} 43... Kf5 {[%clk 0:01:25]} 44. Nd7 {[%clk 0:00:24.3]} 44... c4
{[%clk 0:01:18.7]} 45. Nc5 {[%clk 0:00:23.4]} 45... e4 {[%clk 0:01:09.9]} 46.
Nd7 {[%clk 0:00:17.9]} 46... f3 {[%clk 0:00:54.5]} 47. Nc5 {[%clk 0:00:16.5]}
47... Ke5 {[%clk 0:00:53]} 48. Nd7+ {[%clk 0:00:16.2]} 48... Kd6 {[%clk
0:00:51.7]} 49. Nf6 {[%clk 0:00:16.1]} 49... Kc5 {[%clk 0:00:50]} 50. Nd7+
{[%clk 0:00:15.5]} 50... Kc6 {[%clk 0:00:49.4]} 51. Ne5+ {[%clk 0:00:15.5]}
51... Kb6 {[%clk 0:00:49.7]} 52. Nd7+ {[%clk 0:00:15.3]} 52... Ka5 {[%clk
0:00:48.2]} 53. Ne5 {[%clk 0:00:13.4]} 53... Ka4 {[%clk 0:00:44.3]} 54. Nc6
{[%clk 0:00:13.1]} 54... Kb3 {[%clk 0:00:41.8]} 55. Nd4+ {[%clk 0:00:13.1]}
55... Kxb2 {[%clk 0:00:40.6]} 56. Nxb5 {[%clk 0:00:12.8]} 56... c3 {[%clk
0:00:40.5]} 0-1

[Event "*** Titled Tuesday Blitz"]
[Site "Chess.com"]
[Date "2021.03.09"]
[Round "9"]
[White "GMKrikor"]
[Black "jaskol95"]
[Result "1-0"]
[WhiteElo "2695"]
[BlackElo "2430"]
[TimeControl "180+1"]
[EndTime "11:48:11 PST"]
[Termination "GMKrikor won by resignation"]

1. Nf3 {[%clk 0:03:00.9]} 1... Nf6 {[%clk 0:02:58.6]} 2. c4 {[%clk 0:03:00.8]}
2... g6 {[%clk 0:02:58.8]} 3. Nc3 {[%clk 0:03:00.8]} 3... Bg7 {[%clk 0:02:59.1]}
4. e4 {[%clk 0:03:00.8]} 4... c5 {[%clk 0:02:58.4]} 5. d4 {[%clk 0:03:00.5]}
5... cxd4 {[%clk 0:02:58.2]} 6. Nxd4 {[%clk 0:03:01.4]} 6... d6 {[%clk
0:02:58.8]} 7. Be2 {[%clk 0:03:00.7]} 7... O-O {[%clk 0:02:59]} 8. O-O {[%clk
0:02:59.3]} 8... Nc6 {[%clk 0:02:59.4]} 9. Be3 {[%clk 0:02:59.6]} 9... a6 {[%clk
0:02:59.8]} 10. Rc1 {[%clk 0:02:57.6]} 10... Bd7 {[%clk 0:02:56.1]} 11. h3
{[%clk 0:02:57.3]} 11... Nxd4 {[%clk 0:02:56.1]} 12. Bxd4 {[%clk 0:02:57.3]}
12... Bc6 {[%clk 0:02:56.6]} 13. Qc2 {[%clk 0:02:57.4]} 13... Qd7 {[%clk
0:02:54.3]} 14. b4 {[%clk 0:02:52.8]} 14... Rfc8 {[%clk 0:02:51.5]} 15. Rcd1
{[%clk 0:02:45.5]} 15... Qc7 {[%clk 0:02:39.5]} 16. Rfe1 {[%clk 0:02:41.4]}
16... e6 {[%clk 0:02:27.8]} 17. Bf1 {[%clk 0:02:35.8]} 17... Nd7 {[%clk
0:02:25]} 18. Bxg7 {[%clk 0:02:33.8]} 18... Kxg7 {[%clk 0:02:25.9]} 19. Qd2
{[%clk 0:02:34.1]} 19... Ne5 {[%clk 0:02:10.1]} 20. f4 {[%clk 0:01:07.7]} 20...
Nxc4 {[%clk 0:01:39.1]} 21. Bxc4 {[%clk 0:01:08.6]} 21... Be8 {[%clk 0:01:38.6]}
22. f5 {[%clk 0:00:53.5]} 22... Qxc4 {[%clk 0:01:30.5]} 23. Re3 {[%clk
0:00:53.6]} 23... Qxb4 {[%clk 0:01:22]} 24. Rf1 {[%clk 0:00:42.1]} 24... Bb5
{[%clk 0:00:48.9]} 25. f6+ {[%clk 0:00:38.6]} 25... Kg8 {[%clk 0:00:48.5]} 26.
Rf2 {[%clk 0:00:28.4]} 26... Qc5 {[%clk 0:00:33]} 27. Rg3 {[%clk 0:00:26.9]}
27... Qh5 {[%clk 0:00:30.6]} 28. Kh2 {[%clk 0:00:20.5]} 28... Rc5 {[%clk
0:00:29.1]} 29. Qxd6 {[%clk 0:00:18.9]} 29... Rac8 {[%clk 0:00:28.8]} 30. Rd2
{[%clk 0:00:17.2]} 30... Qe5 {[%clk 0:00:15.9]} 31. Qe7 {[%clk 0:00:17]} 31...
h6 {[%clk 0:00:07.8]} 32. Rd8+ {[%clk 0:00:14.8]} 32... Rxd8 {[%clk 0:00:07.5]}
33. Qxd8+ {[%clk 0:00:14.8]} 33... Kh7 {[%clk 0:00:08.4]} 34. Qe7 {[%clk
0:00:13.7]} 34... Kg8 {[%clk 0:00:04.2]} 35. Qd8+ {[%clk 0:00:09.5]} 35... Kh7
{[%clk 0:00:04.2]} 36. Qf8 {[%clk 0:00:04.8]} 36... Qxf6 {[%clk 0:00:03.2]} 37.
Qxc5 {[%clk 0:00:05]} 37... Bc6 {[%clk 0:00:03.8]} 38. Qe3 {[%clk 0:00:04.9]}
38... h5 {[%clk 0:00:03.4]} 39. Kg1 {[%clk 0:00:05.2]} 1-0

[Event "*** Titled Tuesday Blitz"]
[Site "Chess.com"]
[Date "2021.03.09"]
[Round "9"]
[White "Grineva_Marianna"]
[Black "FMalexhdez"]
[Result "1-0"]
[WhiteElo "2285"]
[BlackElo "2173"]
[TimeControl "180+1"]
[EndTime "11:48:11 PST"]
[Termination "Grineva_Marianna won on time"]

1. e4 {[%clk 0:03:00.9]} 1... c5 {[%clk 0:02:59.7]} 2. Nf3 {[%clk 0:03:01.2]}
2... d6 {[%clk 0:03:00.4]} 3. d4 {[%clk 0:03:01.8]} 3... cxd4 {[%clk 0:03:00.5]}
4. Nxd4 {[%clk 0:03:02.7]} 4... Nf6 {[%clk 0:03:00.5]} 5. Nc3 {[%clk 0:03:03.2]}
5... a6 {[%clk 0:03:01]} 6. f3 {[%clk 0:03:02.2]} 6... e5 {[%clk 0:03:01.1]} 7.
Nb3 {[%clk 0:03:02.7]} 7... Be6 {[%clk 0:02:58.1]} 8. Be3 {[%clk 0:03:03]} 8...
Nbd7 {[%clk 0:02:52.4]} 9. g4 {[%clk 0:03:01.8]} 9... Nb6 {[%clk 0:02:46]} 10.
Na5 {[%clk 0:02:44.7]} 10... Qc7 {[%clk 0:02:40.2]} 11. g5 {[%clk 0:02:27.8]}
11... Nfd7 {[%clk 0:02:38.2]} 12. Qd2 {[%clk 0:02:27.8]} 12... Rc8 {[%clk
0:02:33.6]} 13. O-O-O {[%clk 0:02:06.8]} 13... Nc5 {[%clk 0:02:10.4]} 14. h4
{[%clk 0:02:00]} 14... Nba4 {[%clk 0:02:06]} 15. Nd5 {[%clk 0:01:50.6]} 15...
Bxd5 {[%clk 0:01:58.2]} 16. exd5 {[%clk 0:01:51.5]} 16... Be7 {[%clk 0:01:31.8]}
17. Bh3 {[%clk 0:01:47.1]} 17... Nd7 {[%clk 0:01:02.8]} 18. Rh2 {[%clk 0:01:35]}
18... Nab6 {[%clk 0:00:47.2]} 19. Qb4 {[%clk 0:01:22.5]} 19... Rb8 {[%clk
0:00:31.5]} 20. f4 {[%clk 0:00:56]} 20... exf4 {[%clk 0:00:29.6]} 21. Bxf4
{[%clk 0:00:45.3]} 21... O-O {[%clk 0:00:29.1]} 22. Re1 {[%clk 0:00:45.5]} 22...
Ne5 {[%clk 0:00:26.1]} 23. Bf5 {[%clk 0:00:30.5]} 23... Rfe8 {[%clk 0:00:18.7]}
24. Rhe2 {[%clk 0:00:26.4]} 24... Bf8 {[%clk 0:00:17.4]} 25. Kb1 {[%clk
0:00:23.5]} 25... g6 {[%clk 0:00:16.8]} 26. Bh3 {[%clk 0:00:19.5]} 26... Bg7
{[%clk 0:00:16.9]} 27. a3 {[%clk 0:00:16.7]} 27... Red8 {[%clk 0:00:13.5]} 28.
h5 {[%clk 0:00:16.7]} 28... Nbc4 {[%clk 0:00:11.8]} 29. Nxc4 {[%clk 0:00:16]}
29... Qxc4 {[%clk 0:00:10.3]} 30. Bxe5 {[%clk 0:00:14.5]} 30... Qxb4 {[%clk
0:00:09.6]} 31. axb4 {[%clk 0:00:15.1]} 31... Bxe5 {[%clk 0:00:07.3]} 32. hxg6
{[%clk 0:00:14.9]} 32... fxg6 {[%clk 0:00:05.7]} 33. Be6+ {[%clk 0:00:13.9]}
33... Kg7 {[%clk 0:00:05.8]} 34. Rf1 {[%clk 0:00:14.4]} 34... Rf8 {[%clk
0:00:06]} 35. Ref2 {[%clk 0:00:14.9]} 35... Rxf2 {[%clk 0:00:05.4]} 36. Rxf2
{[%clk 0:00:15.8]} 36... Rf8 {[%clk 0:00:05.1]} 37. Rg2 {[%clk 0:00:15.3]} 37...
Rf1+ {[%clk 0:00:04]} 38. Ka2 {[%clk 0:00:14.7]} 38... h6 {[%clk 0:00:04]} 39.
c3 {[%clk 0:00:13.8]} 39... h5 {[%clk 0:00:03.2]} 40. Kb3 {[%clk 0:00:12.3]}
40... h4 {[%clk 0:00:03.5]} 41. Rg4 {[%clk 0:00:12.1]} 41... Rf4 {[%clk
0:00:03.3]} 42. Rg1 {[%clk 0:00:11.8]} 42... Rf3 {[%clk 0:00:02.8]} 43. Rh1
{[%clk 0:00:12.2]} 1-0

[Event "*** Titled Tuesday Blitz"]
[Site "Chess.com"]
[Date "2021.03.09"]
[Round "9"]
[White "MasterMK73"]
[Black "cukin84"]
[Result "1-0"]
[WhiteElo "2291"]
[BlackElo "2113"]
[TimeControl "180+1"]
[EndTime "11:48:15 PST"]
[Termination "MasterMK73 won by resignation"]

1. d4 {[%clk 0:03:00.9]} 1... f5 {[%clk 0:02:59.4]} 2. Bf4 {[%clk 0:02:55.5]}
2... Nf6 {[%clk 0:02:59]} 3. Nf3 {[%clk 0:02:55.1]} 3... g6 {[%clk 0:02:58.4]}
4. h4 {[%clk 0:02:53.2]} 4... h5 {[%clk 0:02:54.9]} 5. e3 {[%clk 0:02:34.9]}
5... d6 {[%clk 0:02:53.4]} 6. Bc4 {[%clk 0:02:32.5]} 6... c6 {[%clk 0:02:40.9]}
7. Nbd2 {[%clk 0:02:14.2]} 7... Ng4 {[%clk 0:02:26.9]} 8. c3 {[%clk 0:01:56.8]}
8... b5 {[%clk 0:02:21.6]} 9. Bb3 {[%clk 0:01:52.5]} 9... d5 {[%clk 0:02:18.9]}
10. Ne5 {[%clk 0:01:45.4]} 10... Nxe5 {[%clk 0:02:15.6]} 11. Bxe5 {[%clk
0:01:44.8]} 11... Rg8 {[%clk 0:02:14.2]} 12. Nf3 {[%clk 0:01:41.8]} 12... Nd7
{[%clk 0:02:06.7]} 13. a4 {[%clk 0:01:34.4]} 13... e6 {[%clk 0:01:59.9]} 14.
axb5 {[%clk 0:01:32.5]} 14... cxb5 {[%clk 0:01:59.7]} 15. Qe2 {[%clk 0:01:31.9]}
15... Qb6 {[%clk 0:01:56.5]} 16. O-O {[%clk 0:01:26.3]} 16... Be7 {[%clk
0:01:51.6]} 17. Bg3 {[%clk 0:01:15.5]} 17... Kf7 {[%clk 0:01:49.3]} 18. Nd2
{[%clk 0:00:59.2]} 18... a5 {[%clk 0:01:45.1]} 19. f3 {[%clk 0:00:58.1]} 19...
Ba6 {[%clk 0:01:44.2]} 20. Bc2 {[%clk 0:00:54.7]} 20... Nf6 {[%clk 0:01:36.7]}
21. e4 {[%clk 0:00:52.1]} 21... b4 {[%clk 0:01:33.7]} 22. Bd3 {[%clk 0:00:51.4]}
22... dxe4 {[%clk 0:01:29.8]} 23. fxe4 {[%clk 0:00:50.6]} 23... Bxd3 {[%clk
0:01:19.7]} 24. Qxd3 {[%clk 0:00:49.7]} 24... Qa6 {[%clk 0:01:19.7]} 25. Qf3
{[%clk 0:00:46.3]} 25... Qb7 {[%clk 0:01:16.2]} 26. exf5 {[%clk 0:00:43.4]}
26... Qxf3 {[%clk 0:01:15.5]} 27. fxe6+ {[%clk 0:00:43.2]} 27... Kg7 {[%clk
0:01:09.5]} 28. Nxf3 {[%clk 0:00:42.1]} 28... bxc3 {[%clk 0:01:08.9]} 29. bxc3
{[%clk 0:00:41.1]} 29... Ne4 {[%clk 0:01:08.3]} 30. Be5+ {[%clk 0:00:40.2]}
30... Kh6 {[%clk 0:01:05.7]} 31. d5 {[%clk 0:00:28.8]} 31... Rgd8 {[%clk
0:00:57.4]} 32. c4 {[%clk 0:00:28.6]} 32... a4 {[%clk 0:00:51.5]} 33. Rae1
{[%clk 0:00:27.9]} 33... Bc5+ {[%clk 0:00:48.9]} 34. Kh2 {[%clk 0:00:24.7]}
34... Nf2 {[%clk 0:00:47.4]} 35. Ng5 {[%clk 0:00:20.7]} 35... Ng4+ {[%clk
0:00:46.5]} 36. Kg3 {[%clk 0:00:20.1]} 36... Nxe5 {[%clk 0:00:45.8]} 37. Rxe5
{[%clk 0:00:18.9]} 37... Bd6 {[%clk 0:00:44.5]} 38. Nf7+ {[%clk 0:00:18.8]}
38... Kg7 {[%clk 0:00:44.8]} 39. Nxd6 {[%clk 0:00:19.5]} 39... Rxd6 {[%clk
0:00:45.1]} 40. Rf7+ {[%clk 0:00:19.9]} 40... Kg8 {[%clk 0:00:44.7]} 41. Rb7
{[%clk 0:00:17.5]} 41... a3 {[%clk 0:00:44.1]} 42. e7 {[%clk 0:00:17.6]} 42...
Re8 {[%clk 0:00:43.6]} 43. Ra7 {[%clk 0:00:15.9]} 43... Kf7 {[%clk 0:00:40]} 44.
Rxa3 {[%clk 0:00:14.5]} 44... Rxe7 {[%clk 0:00:39.8]} 45. Rf3+ {[%clk 0:00:15]}
45... Ke8 {[%clk 0:00:39.7]} 46. Rfe3 {[%clk 0:00:14.5]} 46... Rxe5 {[%clk
0:00:39.2]} 47. Rxe5+ {[%clk 0:00:15]} 47... Kd7 {[%clk 0:00:39.4]} 48. c5
{[%clk 0:00:15.5]} 48... Rf6 {[%clk 0:00:38.6]} 49. c6+ {[%clk 0:00:15.1]} 49...
Kc7 {[%clk 0:00:38.9]} 50. Re7+ {[%clk 0:00:13.7]} 50... Kd6 {[%clk 0:00:37.7]}
51. Re6+ {[%clk 0:00:13.6]} 1-0

[Event "*** Titled Tuesday Blitz"]
[Site "Chess.com"]
[Date "2021.03.09"]
[Round "9"]
[White "m_ezat"]
[Black "Abund"]
[Result "1-0"]
[WhiteElo "2551"]
[BlackElo "2640"]
[TimeControl "180+1"]
[EndTime "11:48:16 PST"]
[Termination "m_ezat won by checkmate"]

1. d4 {[%clk 0:03:00.9]} 1... Nf6 {[%clk 0:03:00]} 2. c4 {[%clk 0:03:01.2]} 2...
g6 {[%clk 0:03:00.4]} 3. Nc3 {[%clk 0:02:59.9]} 3... d5 {[%clk 0:03:00.7]} 4.
Bg5 {[%clk 0:02:58.7]} 4... Ne4 {[%clk 0:02:55.2]} 5. cxd5 {[%clk 0:02:58.6]}
5... Nxg5 {[%clk 0:02:42.3]} 6. h4 {[%clk 0:02:57.9]} 6... e6 {[%clk 0:02:30.9]}
7. Qa4+ {[%clk 0:02:52.4]} 7... c6 {[%clk 0:02:15.4]} 8. dxc6 {[%clk 0:02:51.7]}
8... Nxc6 {[%clk 0:02:13.3]} 9. e3 {[%clk 0:02:50.4]} 9... Bd7 {[%clk
0:01:57.6]} 10. hxg5 {[%clk 0:02:49.3]} 10... Qxg5 {[%clk 0:01:57]} 11. Nf3
{[%clk 0:02:49.4]} 11... Qe7 {[%clk 0:01:55.4]} 12. Qb3 {[%clk 0:02:42.1]} 12...
Bg7 {[%clk 0:01:53.8]} 13. Be2 {[%clk 0:02:06.5]} 13... O-O {[%clk 0:01:51.8]}
14. O-O {[%clk 0:02:06.1]} 14... Rfc8 {[%clk 0:01:46.9]} 15. Rad1 {[%clk
0:02:02.5]} 15... Na5 {[%clk 0:01:42.8]} 16. Qc2 {[%clk 0:02:01.9]} 16... b5
{[%clk 0:01:42.8]} 17. Qd2 {[%clk 0:01:57.5]} 17... Nc4 {[%clk 0:01:38.5]} 18.
Bxc4 {[%clk 0:01:56.5]} 18... Rxc4 {[%clk 0:01:31.2]} 19. Ne4 {[%clk 0:01:56.3]}
19... Bc6 {[%clk 0:01:26.8]} 20. Qd3 {[%clk 0:01:55.3]} 20... Rd8 {[%clk
0:01:03.6]} 21. b3 {[%clk 0:01:51]} 21... Bxe4 {[%clk 0:00:53]} 22. Qxe4 {[%clk
0:01:51]} 22... Rc3 {[%clk 0:00:51.3]} 23. Rc1 {[%clk 0:01:47.1]} 23... b4
{[%clk 0:00:45.6]} 24. Rxc3 {[%clk 0:01:43.5]} 24... bxc3 {[%clk 0:00:46]} 25.
Qc6 {[%clk 0:01:42.6]} 25... Qa3 {[%clk 0:00:45.6]} 26. Qxc3 {[%clk 0:01:40.5]}
26... Qxa2 {[%clk 0:00:45.7]} 27. Ra1 {[%clk 0:01:36.3]} 27... Qe2 {[%clk
0:00:45.6]} 28. Qc7 {[%clk 0:01:27.5]} 28... Rf8 {[%clk 0:00:39.1]} 29. Qxa7
{[%clk 0:01:23.7]} 29... Qb2 {[%clk 0:00:27.7]} 30. Qa2 {[%clk 0:00:56.6]} 30...
Qc3 {[%clk 0:00:27.5]} 31. Rb1 {[%clk 0:00:48.5]} 31... Rb8 {[%clk 0:00:26.8]}
32. Qb2 {[%clk 0:00:47.7]} 32... Qb4 {[%clk 0:00:19.6]} 33. Qc2 {[%clk
0:00:45.6]} 33... Qa3 {[%clk 0:00:19.4]} 34. g3 {[%clk 0:00:32.4]} 34... h6
{[%clk 0:00:19.3]} 35. Kg2 {[%clk 0:00:31.8]} 35... Qb4 {[%clk 0:00:13]} 36. Qc6
{[%clk 0:00:23.9]} 36... Qa3 {[%clk 0:00:11.6]} 37. b4 {[%clk 0:00:23.6]} 37...
Rxb4 {[%clk 0:00:09]} 38. Qe8+ {[%clk 0:00:23.5]} 38... Bf8 {[%clk 0:00:09.2]}
39. Ne5 {[%clk 0:00:21.3]} 39... Qa7 {[%clk 0:00:02.4]} 40. Rxb4 {[%clk
0:00:18.4]} 40... Kg7 {[%clk 0:00:02.9]} 41. Rb8 {[%clk 0:00:16.7]} 41... Bd6
{[%clk 0:00:02.4]} 42. Qh8# {[%clk 0:00:16.3]} 1-0